[Event "Late-Titled-Tuesday-Blitz-October-17-2023"]
[Site "Chess.com"]
[Date "2023.10.17"]
[Round "9"]
[White "MikaelyanArman"]
[Black "nochewycandy"]
[Result "1-0"]
[WhiteElo "2895"]
[BlackElo "2731"]
[TimeControl "180+1"]
[EndTime "15:42:20 PDT"]
[Termination "MikaelyanArman won on time"]

1. d4 {[%clk 0:03:00.9]} 1... g6 {[%clk 0:02:59.8]} 2. e4 {[%clk 0:02:58.2]}
2... Bg7 {[%clk 0:03:00]} 3. Nf3 {[%clk 0:02:58.8]} 3... d6 {[%clk 0:03:00.6]}
4. Nc3 {[%clk 0:02:58.8]} 4... a6 {[%clk 0:03:01]} 5. Bd3 {[%clk 0:02:57.9]}
5... b5 {[%clk 0:03:01.2]} 6. O-O {[%clk 0:02:58.6]} 6... Bb7 {[%clk 0:03:01.6]}
7. a4 {[%clk 0:02:57.3]} 7... b4 {[%clk 0:03:01.5]} 8. Ne2 {[%clk 0:02:57.8]}
8... Nd7 {[%clk 0:03:01.5]} 9. Ng3 {[%clk 0:02:57.5]} 9... c5 {[%clk 0:03:01.7]}
10. c3 {[%clk 0:02:56.3]} 10... bxc3 {[%clk 0:03:02.1]} 11. bxc3 {[%clk
0:02:57.2]} 11... Ngf6 {[%clk 0:03:02.4]} 12. Re1 {[%clk 0:02:27.2]} 12... O-O
{[%clk 0:03:00.6]} 13. Bf4 {[%clk 0:02:24.4]} 13... Qc7 {[%clk 0:02:09.6]} 14.
Qe2 {[%clk 0:02:17.6]} 14... e5 {[%clk 0:02:08.6]} 15. dxe5 {[%clk 0:02:12.6]}
15... dxe5 {[%clk 0:02:05.3]} 16. Bd2 {[%clk 0:02:03.2]} 16... h6 {[%clk
0:01:58.5]} 17. a5 {[%clk 0:02:02.6]} 17... Kh7 {[%clk 0:01:56.9]} 18. Bc4
{[%clk 0:02:02.2]} 18... Bc6 {[%clk 0:01:42]} 19. h4 {[%clk 0:01:53.7]} 19...
Ng4 {[%clk 0:01:08.2]} 20. Ng5+ {[%clk 0:01:43.1]} 20... hxg5 {[%clk 0:01:07]}
21. Qxg4 {[%clk 0:01:44]} 21... gxh4 {[%clk 0:01:04]} 22. Qxh4+ {[%clk
0:01:41.2]} 22... Kg8 {[%clk 0:01:03.4]} 23. Bg5 {[%clk 0:01:29.6]} 23... Bb5
{[%clk 0:00:55.9]} 24. Bd5 {[%clk 0:01:24.3]} 24... Bc6 {[%clk 0:00:56.1]} 25.
Ba2 {[%clk 0:01:19.6]} 25... Rfe8 {[%clk 0:00:45]} 26. Red1 {[%clk 0:01:12.3]}
26... Nf8 {[%clk 0:00:44.6]} 27. Bf6 {[%clk 0:01:05]} 27... Nh7 {[%clk
0:00:17.9]} 28. Bxg7 {[%clk 0:00:52.2]} 28... Kxg7 {[%clk 0:00:18.8]} 29. Rd3
{[%clk 0:00:52.6]} 29... Rad8 {[%clk 0:00:17.1]} 30. Rf3 {[%clk 0:00:51.1]}
30... Rd7 {[%clk 0:00:14.6]} 31. Rb1 {[%clk 0:00:37.4]} 31... Qd6 {[%clk
0:00:14.3]} 32. Rxf7+ {[%clk 0:00:21.9]} 32... Rxf7 {[%clk 0:00:13.7]} 33. Bxf7
{[%clk 0:00:22.8]} 33... Rf8 {[%clk 0:00:09.6]} 34. Bc4 {[%clk 0:00:23]} 34...
Nf6 {[%clk 0:00:09.3]} 35. Qg5 {[%clk 0:00:09.8]} 35... Kh7 {[%clk 0:00:09.7]}
36. Re1 {[%clk 0:00:07.1]} 36... Bb5 {[%clk 0:00:08.7]} 37. Bxb5 {[%clk
0:00:05.3]} 37... axb5 {[%clk 0:00:09.6]} 38. Qc1 {[%clk 0:00:04.9]} 38... Ng4
{[%clk 0:00:08.5]} 39. f3 {[%clk 0:00:04.8]} 39... Nf6 {[%clk 0:00:08.2]} 40.
Rd1 {[%clk 0:00:05.4]} 40... Qc7 {[%clk 0:00:07.5]} 41. Qd2 {[%clk 0:00:05.2]}
41... Qxa5 {[%clk 0:00:07.2]} 42. Qd6 {[%clk 0:00:04.7]} 42... Rf7 {[%clk
0:00:06.9]} 43. Qe6 {[%clk 0:00:05.1]} 43... Kg7 {[%clk 0:00:06.5]} 44. Rd6
{[%clk 0:00:04.7]} 44... Qxc3 {[%clk 0:00:06.2]} 45. Kh2 {[%clk 0:00:04.8]}
45... Qe3 {[%clk 0:00:03.2]} 46. Rd8 {[%clk 0:00:04.7]} 46... Qh6+ {[%clk
0:00:03.4]} 47. Kg1 {[%clk 0:00:05.4]} 47... Qc1+ {[%clk 0:00:04]} 48. Kf2
{[%clk 0:00:05.4]} 48... Qb2+ {[%clk 0:00:04.2]} 49. Ne2 {[%clk 0:00:05.9]}
49... Qa3 {[%clk 0:00:02.8]} 50. Kg1 {[%clk 0:00:04.8]} 50... c4 {[%clk
0:00:03.2]} 51. Qc8 {[%clk 0:00:04.3]} 51... Qa1+ {[%clk 0:00:03]} 52. Kh2
{[%clk 0:00:04]} 52... Qe1 {[%clk 0:00:03.1]} 53. Ng3 {[%clk 0:00:04.3]} 53...
Qe3 {[%clk 0:00:02.3]} 54. Qh3 {[%clk 0:00:03.5]} 54... Qh6 {[%clk 0:00:02.2]}
55. Qxh6+ {[%clk 0:00:02.8]} 55... Kxh6 {[%clk 0:00:03.1]} 56. Rb8 {[%clk
0:00:03.3]} 56... Rc7 {[%clk 0:00:03.1]} 57. Rxb5 {[%clk 0:00:03.7]} 57... c3
{[%clk 0:00:03.6]} 58. Rb1 {[%clk 0:00:04.4]} 58... c2 {[%clk 0:00:04.1]} 59.
Rc1 {[%clk 0:00:05.1]} 59... Kg7 {[%clk 0:00:04.7]} 60. Nf1 {[%clk 0:00:05.6]}
60... Nh5 {[%clk 0:00:04.3]} 61. Ne3 {[%clk 0:00:05.9]} 61... Nf4 {[%clk
0:00:04.9]} 62. Rxc2 {[%clk 0:00:06.6]} 62... Re7 {[%clk 0:00:04.5]} 63. Rc5
{[%clk 0:00:06.5]} 63... Kf7 {[%clk 0:00:03.1]} 64. Nd5 {[%clk 0:00:06.7]} 64...
Nxd5 {[%clk 0:00:03.5]} 65. Rxd5 {[%clk 0:00:07.6]} 65... Kf6 {[%clk 0:00:03.8]}
66. Kg3 {[%clk 0:00:07.8]} 66... Kg5 {[%clk 0:00:03.8]} 67. Rd6 {[%clk
0:00:07.1]} 67... Ra7 {[%clk 0:00:03]} 68. Rc6 {[%clk 0:00:07.3]} 68... Ra5
{[%clk 0:00:03.5]} 69. Re6 {[%clk 0:00:06.4]} 69... Rb5 {[%clk 0:00:03.5]} 70.
Rxe5+ {[%clk 0:00:05.5]} 1-0

[Event "Late-Titled-Tuesday-Blitz-October-17-2023"]
[Site "Chess.com"]
[Date "2023.10.17"]
[Round "9"]
[White "HajiyevKanan"]
[Black "Binary010"]
[Result "0-1"]
[WhiteElo "2540"]
[BlackElo "2796"]
[TimeControl "180+1"]
[EndTime "15:42:36 PDT"]
[Termination "Binary010 won on time"]

1. d4 {[%clk 0:03:00.9]} 1... Nf6 {[%clk 0:02:59.7]} 2. Nf3 {[%clk 0:03:01.3]}
2... d5 {[%clk 0:02:59.6]} 3. c4 {[%clk 0:03:01.3]} 3... e6 {[%clk 0:02:59.7]}
4. cxd5 {[%clk 0:03:02.2]} 4... exd5 {[%clk 0:02:59.9]} 5. Nc3 {[%clk
0:03:03.1]} 5... c6 {[%clk 0:02:59.9]} 6. Qc2 {[%clk 0:03:02.8]} 6... g6 {[%clk
0:02:55.4]} 7. Bg5 {[%clk 0:03:02.6]} 7... Be7 {[%clk 0:02:54.1]} 8. e3 {[%clk
0:03:02.6]} 8... Bf5 {[%clk 0:02:51.2]} 9. Bd3 {[%clk 0:03:03.2]} 9... Bxd3
{[%clk 0:02:48.9]} 10. Qxd3 {[%clk 0:03:04.1]} 10... Nbd7 {[%clk 0:02:49.1]} 11.
O-O {[%clk 0:03:03.9]} 11... O-O {[%clk 0:02:46.9]} 12. Rab1 {[%clk 0:03:03.4]}
12... Re8 {[%clk 0:02:44.5]} 13. Qc2 {[%clk 0:03:02.9]} 13... a5 {[%clk
0:02:43.9]} 14. Bf4 {[%clk 0:03:01.7]} 14... Bf8 {[%clk 0:02:23.6]} 15. Bg5
{[%clk 0:03:01.3]} 15... Qb8 {[%clk 0:02:02.3]} 16. Bf4 {[%clk 0:02:47.4]} 16...
Bd6 {[%clk 0:02:01.2]} 17. Bxd6 {[%clk 0:02:47]} 17... Qxd6 {[%clk 0:02:01.5]}
18. Rfc1 {[%clk 0:02:41.9]} 18... Ne4 {[%clk 0:01:58.5]} 19. Nxe4 {[%clk
0:02:41.6]} 19... dxe4 {[%clk 0:01:58.3]} 20. Nd2 {[%clk 0:02:41.6]} 20... Nf6
{[%clk 0:01:57.8]} 21. Nc4 {[%clk 0:02:41.5]} 21... Qe6 {[%clk 0:01:50]} 22. Ne5
{[%clk 0:02:35.7]} 22... Qxa2 {[%clk 0:01:47.7]} 23. Nc4 {[%clk 0:02:00.8]}
23... b5 {[%clk 0:01:18.2]} 24. Nd6 {[%clk 0:01:47.2]} 24... Re6 {[%clk
0:01:15.6]} 25. Nb7 {[%clk 0:00:52]} 25... a4 {[%clk 0:01:12.7]} 26. Nc5 {[%clk
0:00:49]} 26... Re7 {[%clk 0:01:09.4]} 27. b3 {[%clk 0:00:37]} 27... Qxc2 {[%clk
0:01:00.9]} 28. Rxc2 {[%clk 0:00:37.9]} 28... a3 {[%clk 0:01:00.8]} 29. b4
{[%clk 0:00:36.9]} 29... Nd5 {[%clk 0:00:57.6]} 30. Kf1 {[%clk 0:00:25.2]} 30...
f5 {[%clk 0:00:38.7]} 31. Ke2 {[%clk 0:00:20.9]} 31... a2 {[%clk 0:00:37.1]} 32.
Ra1 {[%clk 0:00:20.5]} 32... Rea7 {[%clk 0:00:37.3]} 33. Rb2 {[%clk 0:00:18.9]}
33... Ra3 {[%clk 0:00:32.4]} 34. Kd2 {[%clk 0:00:17.3]} 34... f4 {[%clk
0:00:24]} 35. exf4 {[%clk 0:00:16.3]} 35... Nxf4 {[%clk 0:00:24.9]} 36. Nxe4
{[%clk 0:00:15.7]} 36... Rd3+ {[%clk 0:00:25]} 37. Kc2 {[%clk 0:00:13.5]} 37...
Rxd4 {[%clk 0:00:25.1]} 38. Nc5 {[%clk 0:00:12.2]} 38... Nd5 {[%clk 0:00:18.2]}
39. Nd3 {[%clk 0:00:06.9]} 39... Ra3 {[%clk 0:00:17.2]} 40. Rb3 {[%clk
0:00:04.7]} 40... Rxb3 {[%clk 0:00:17]} 41. Kxb3 {[%clk 0:00:05.6]} 41... Rxd3+
{[%clk 0:00:17.3]} 42. Kxa2 {[%clk 0:00:06.2]} 42... Nxb4+ {[%clk 0:00:16.3]}
43. Kb2 {[%clk 0:00:06.4]} 43... Nd5 {[%clk 0:00:14.5]} 44. Kc2 {[%clk
0:00:06.2]} 44... Rc3+ {[%clk 0:00:14.2]} 45. Kd2 {[%clk 0:00:07]} 45... b4
{[%clk 0:00:14.5]} 46. Ra8+ {[%clk 0:00:07.3]} 46... Kg7 {[%clk 0:00:14.6]} 47.
Rb8 {[%clk 0:00:07.9]} 47... c5 {[%clk 0:00:13.1]} 48. Rd8 {[%clk 0:00:08.1]}
48... Nf6 {[%clk 0:00:12.8]} 49. Rb8 {[%clk 0:00:08.2]} 49... Ne4+ {[%clk
0:00:12.6]} 50. Ke2 {[%clk 0:00:07.7]} 50... Rc2+ {[%clk 0:00:12.3]} 51. Ke3
{[%clk 0:00:08.3]} 51... Nxf2 {[%clk 0:00:12.5]} 52. Rb7+ {[%clk 0:00:09.1]}
52... Kh6 {[%clk 0:00:12.2]} 53. h4 {[%clk 0:00:10]} 53... Ng4+ {[%clk
0:00:11.5]} 54. Kf3 {[%clk 0:00:10]} 54... Nf6 {[%clk 0:00:11.2]} 55. g4 {[%clk
0:00:09.4]} 55... Rc3+ {[%clk 0:00:10.8]} 56. Kf4 {[%clk 0:00:09.5]} 56... Rc4+
{[%clk 0:00:11.1]} 57. Ke5 {[%clk 0:00:09.5]} 57... Nxg4+ {[%clk 0:00:11.3]} 58.
Kd5 {[%clk 0:00:10.3]} 58... Ne3+ {[%clk 0:00:09.2]} 59. Ke5 {[%clk 0:00:10.2]}
59... Rxh4 {[%clk 0:00:09.3]} 60. Rb5 {[%clk 0:00:10.5]} 60... Rc4 {[%clk
0:00:08.7]} 61. Kf6 {[%clk 0:00:11.2]} 61... Rc3 {[%clk 0:00:07.4]} 62. Rb7
{[%clk 0:00:11.7]} 62... b3 {[%clk 0:00:06.3]} 63. Rb5 {[%clk 0:00:11.3]} 63...
Kh5 {[%clk 0:00:04.1]} 64. Rb7 {[%clk 0:00:10.7]} 64... h6 {[%clk 0:00:04.2]}
65. Rb8 {[%clk 0:00:10.1]} 65... g5 {[%clk 0:00:04.4]} 66. Ke5 {[%clk
0:00:10.8]} 66... c4 {[%clk 0:00:03.9]} 67. Kd4 {[%clk 0:00:11]} 67... Rd3+
{[%clk 0:00:04.6]} 68. Ke4 {[%clk 0:00:11.1]} 68... Nd5 {[%clk 0:00:04.6]} 69.
Rd8 {[%clk 0:00:09.2]} 69... b2 {[%clk 0:00:04.1]} 70. Rb8 {[%clk 0:00:08.9]}
70... Rb3 {[%clk 0:00:03]} 71. Rd8 {[%clk 0:00:08.6]} 71... b1=Q+ {[%clk
0:00:03.2]} 72. Kxd5 {[%clk 0:00:08.4]} 72... Rd3+ {[%clk 0:00:03.5]} 73. Kxc4
{[%clk 0:00:08.9]} 73... Rxd8 {[%clk 0:00:04.2]} 74. Kc5 {[%clk 0:00:09.2]}
74... Qc1+ {[%clk 0:00:04.3]} 75. Kb6 {[%clk 0:00:09.9]} 75... Rb8+ {[%clk
0:00:04.6]} 76. Ka7 {[%clk 0:00:10.8]} 76... Rb2 {[%clk 0:00:04.9]} 0-1

[Event "Late-Titled-Tuesday-Blitz-October-17-2023"]
[Site "Chess.com"]
[Date "2023.10.17"]
[Round "9"]
[White "gahryman"]
[Black "AradNazari"]
[Result "0-1"]
[WhiteElo "2684"]
[BlackElo "2917"]
[TimeControl "180+1"]
[EndTime "15:42:47 PDT"]
[Termination "AradNazari won on time"]

1. e4 {[%clk 0:03:00.9]} 1... c5 {[%clk 0:02:59.8]} 2. Nc3 {[%clk 0:03:00.4]}
2... d6 {[%clk 0:02:58.7]} 3. Bc4 {[%clk 0:03:00.2]} 3... g6 {[%clk 0:02:56.3]}
4. d3 {[%clk 0:02:59.9]} 4... Bg7 {[%clk 0:02:56.3]} 5. a3 {[%clk 0:02:58.8]}
5... e6 {[%clk 0:02:56.4]} 6. Nge2 {[%clk 0:02:54.9]} 6... Ne7 {[%clk
0:02:56.8]} 7. Ba2 {[%clk 0:02:53.8]} 7... O-O {[%clk 0:02:56.6]} 8. h4 {[%clk
0:02:54]} 8... h6 {[%clk 0:02:53]} 9. h5 {[%clk 0:02:53.6]} 9... g5 {[%clk
0:02:52.6]} 10. f4 {[%clk 0:02:54.5]} 10... f6 {[%clk 0:02:41.9]} 11. f5 {[%clk
0:02:52.2]} 11... d5 {[%clk 0:02:36.2]} 12. O-O {[%clk 0:02:34.1]} 12... d4
{[%clk 0:02:09.2]} 13. Nb1 {[%clk 0:02:26]} 13... Kh8 {[%clk 0:01:55.9]} 14.
fxe6 {[%clk 0:02:23.1]} 14... Qd6 {[%clk 0:01:53.8]} 15. Nd2 {[%clk 0:01:21.4]}
15... Bxe6 {[%clk 0:01:53.4]} 16. Bxe6 {[%clk 0:01:21.4]} 16... Qxe6 {[%clk
0:01:54.3]} 17. Ng3 {[%clk 0:01:21.9]} 17... Nbc6 {[%clk 0:01:46.9]} 18. a4
{[%clk 0:01:18.8]} 18... f5 {[%clk 0:01:27.7]} 19. Nxf5 {[%clk 0:01:11.2]} 19...
Nxf5 {[%clk 0:01:27.1]} 20. exf5 {[%clk 0:01:12.1]} 20... Rxf5 {[%clk
0:01:27.6]} 21. Rxf5 {[%clk 0:01:03.5]} 21... Qxf5 {[%clk 0:01:28.5]} 22. Qf3
{[%clk 0:01:04]} 22... Qe6 {[%clk 0:01:20.1]} 23. Qe4 {[%clk 0:01:00.3]} 23...
Qf7 {[%clk 0:01:03.9]} 24. Qg6 {[%clk 0:01:00.2]} 24... Qxg6 {[%clk 0:00:55.4]}
25. hxg6 {[%clk 0:01:01.1]} 25... Nb4 {[%clk 0:00:53.7]} 26. Ne4 {[%clk
0:00:58]} 26... Nxc2 {[%clk 0:00:52.7]} 27. Rb1 {[%clk 0:00:58.5]} 27... b6
{[%clk 0:00:51.2]} 28. Bd2 {[%clk 0:00:58.2]} 28... Re8 {[%clk 0:00:39.9]} 29.
Rc1 {[%clk 0:00:56.8]} 29... Ne3 {[%clk 0:00:37.4]} 30. b4 {[%clk 0:00:32.9]}
30... cxb4 {[%clk 0:00:37.7]} 31. Bxb4 {[%clk 0:00:31.9]} 31... Nd5 {[%clk
0:00:38.3]} 32. Nd6 {[%clk 0:00:27.9]} 32... Ra8 {[%clk 0:00:30.5]} 33. Nf7+
{[%clk 0:00:26.4]} 33... Kg8 {[%clk 0:00:30.7]} 34. Bd6 {[%clk 0:00:26.2]} 34...
Nc3 {[%clk 0:00:29.1]} 35. Re1 {[%clk 0:00:26]} 35... Bf6 {[%clk 0:00:23.5]} 36.
Nxh6+ {[%clk 0:00:14.6]} 36... Kg7 {[%clk 0:00:23.6]} 37. Ng4 {[%clk 0:00:15.2]}
37... Kxg6 {[%clk 0:00:20.2]} 38. Re6 {[%clk 0:00:15.2]} 38... Kf5 {[%clk
0:00:19.7]} 39. Rxf6+ {[%clk 0:00:11.7]} 39... Kxg4 {[%clk 0:00:20.3]} 40. Be5
{[%clk 0:00:11.6]} 40... Re8 {[%clk 0:00:20.2]} 41. Bc7 {[%clk 0:00:09.1]} 41...
Nxa4 {[%clk 0:00:20.3]} 42. Kf2 {[%clk 0:00:06.6]} 42... Nc5 {[%clk 0:00:20.2]}
43. Rf3 {[%clk 0:00:06.4]} 43... Ne6 {[%clk 0:00:15.2]} 44. Be5 {[%clk 0:00:05]}
44... Nf4 {[%clk 0:00:14.6]} 45. Rg3+ {[%clk 0:00:04.8]} 45... Kf5 {[%clk
0:00:15.1]} 46. Bxd4 {[%clk 0:00:05.3]} 46... Re2+ {[%clk 0:00:15]} 47. Kf1
{[%clk 0:00:04.5]} 47... Rd2 {[%clk 0:00:14]} 48. Be3 {[%clk 0:00:04.1]} 48...
Rd1+ {[%clk 0:00:08]} 49. Kf2 {[%clk 0:00:04.1]} 49... Rb1 {[%clk 0:00:06.7]}
50. Bxf4 {[%clk 0:00:04.2]} 50... Kxf4 {[%clk 0:00:07.4]} 51. Rf3+ {[%clk
0:00:03.8]} 51... Ke5 {[%clk 0:00:08.1]} 52. Rf7 {[%clk 0:00:04.7]} 52... a5
{[%clk 0:00:08]} 53. Ke3 {[%clk 0:00:05]} 53... a4 {[%clk 0:00:08.1]} 54. Rb7
{[%clk 0:00:04.7]} 54... b5 {[%clk 0:00:08.1]} 55. Ra7 {[%clk 0:00:03]} 55...
Rb3 {[%clk 0:00:07.4]} 56. Kd2 {[%clk 0:00:02.9]} 56... a3 {[%clk 0:00:07.4]}
57. Kc2 {[%clk 0:00:02.6]} 57... Rb2+ {[%clk 0:00:07.9]} 58. Kc3 {[%clk
0:00:01.7]} 58... b4+ {[%clk 0:00:08.4]} 59. Kc4 {[%clk 0:00:02.6]} 59... Kf4
{[%clk 0:00:08]} 60. d4 {[%clk 0:00:03.5]} 60... Kg3 {[%clk 0:00:08.3]} 61. d5
{[%clk 0:00:04.1]} 61... a2 {[%clk 0:00:07.6]} 62. d6 {[%clk 0:00:04.2]} 62...
Rd2 {[%clk 0:00:07.5]} 63. d7 {[%clk 0:00:03.6]} 63... g4 {[%clk 0:00:07.2]} 64.
Rxa2 {[%clk 0:00:03.4]} 64... Rxd7 {[%clk 0:00:07]} 65. Kxb4 {[%clk 0:00:03.8]}
65... Rf7 {[%clk 0:00:06.9]} 66. Kc4 {[%clk 0:00:03.9]} 66... Rf2 {[%clk
0:00:06]} 67. Ra7 {[%clk 0:00:03.7]} 67... Kxg2 {[%clk 0:00:06.3]} 68. Kd3
{[%clk 0:00:04.6]} 68... g3 {[%clk 0:00:06.8]} 69. Ke3 {[%clk 0:00:04.7]} 69...
Kg1 {[%clk 0:00:06.5]} 70. Ra1+ {[%clk 0:00:04]} 70... Rf1 {[%clk 0:00:06.5]}
71. Ra8 {[%clk 0:00:03.7]} 71... g2 {[%clk 0:00:06.9]} 72. Rh8 {[%clk
0:00:04.6]} 72... Rf7 {[%clk 0:00:07.2]} 73. Ke2 {[%clk 0:00:04.3]} 73... Re7+
{[%clk 0:00:07.1]} 74. Kf3 {[%clk 0:00:04.8]} 74... Kf1 {[%clk 0:00:06.9]} 0-1

[Event "Late-Titled-Tuesday-Blitz-October-17-2023"]
[Site "Chess.com"]
[Date "2023.10.17"]
[Round "9"]
[White "MKlose11"]
[Black "alexrustemov"]
[Result "1/2-1/2"]
[WhiteElo "2655"]
[BlackElo "2818"]
[TimeControl "180+1"]
[EndTime "15:43:46 PDT"]
[Termination "Game drawn by stalemate"]

1. e4 {[%clk 0:03:00.9]} 1... e6 {[%clk 0:02:56.3]} 2. d4 {[%clk 0:02:54.6]}
2... d5 {[%clk 0:02:56.5]} 3. Nc3 {[%clk 0:02:55.3]} 3... dxe4 {[%clk
0:02:53.7]} 4. Nxe4 {[%clk 0:02:53.5]} 4... Bd7 {[%clk 0:02:54.2]} 5. Nf3 {[%clk
0:02:45.6]} 5... Bc6 {[%clk 0:02:54.1]} 6. Bd3 {[%clk 0:02:46.3]} 6... Nd7
{[%clk 0:02:54.5]} 7. O-O {[%clk 0:02:44.3]} 7... Ngf6 {[%clk 0:02:54.8]} 8.
Nxf6+ {[%clk 0:02:40.9]} 8... Nxf6 {[%clk 0:02:53.1]} 9. Ne5 {[%clk 0:02:40.9]}
9... Qxd4 {[%clk 0:02:50.1]} 10. Nxc6 {[%clk 0:02:39.5]} 10... bxc6 {[%clk
0:02:49.4]} 11. Qf3 {[%clk 0:02:39]} 11... Qd5 {[%clk 0:02:47.4]} 12. Qe2 {[%clk
0:02:33.3]} 12... Bd6 {[%clk 0:02:43.9]} 13. Rd1 {[%clk 0:02:25.4]} 13... Qe5
{[%clk 0:02:39.1]} 14. g3 {[%clk 0:02:14.7]} 14... Qxe2 {[%clk 0:02:24.5]} 15.
Bxe2 {[%clk 0:02:15.6]} 15... Rb8 {[%clk 0:02:17.2]} 16. b3 {[%clk 0:02:10.1]}
16... Be5 {[%clk 0:02:12.2]} 17. Rb1 {[%clk 0:02:07.6]} 17... Nd5 {[%clk
0:02:11.7]} 18. Bd2 {[%clk 0:02:06.3]} 18... Bc3 {[%clk 0:02:08.7]} 19. Bf3
{[%clk 0:02:04.7]} 19... Bxd2 {[%clk 0:02:07.4]} 20. Rxd2 {[%clk 0:02:00.3]}
20... Rb6 {[%clk 0:01:56.4]} 21. c4 {[%clk 0:01:58.7]} 21... Nf6 {[%clk
0:01:50.1]} 22. a4 {[%clk 0:01:19.2]} 22... c5 {[%clk 0:01:47.2]} 23. a5 {[%clk
0:01:11.5]} 23... Rb8 {[%clk 0:01:46.2]} 24. Bc6+ {[%clk 0:01:08.2]} 24... Ke7
{[%clk 0:01:46.6]} 25. Rd3 {[%clk 0:00:51.5]} 25... Rhd8 {[%clk 0:01:46.5]} 26.
Rbd1 {[%clk 0:00:51.7]} 26... Rd6 {[%clk 0:01:44]} 27. Ba4 {[%clk 0:00:41.1]}
27... Rbd8 {[%clk 0:01:42.5]} 28. Rxd6 {[%clk 0:00:36.3]} 28... cxd6 {[%clk
0:01:42.3]} 29. Kf1 {[%clk 0:00:35.9]} 29... Rb8 {[%clk 0:01:30.5]} 30. Ke2
{[%clk 0:00:32.4]} 30... d5 {[%clk 0:01:24.2]} 31. cxd5 {[%clk 0:00:30.1]} 31...
exd5 {[%clk 0:01:22.8]} 32. Kd3 {[%clk 0:00:27.3]} 32... Kd6 {[%clk 0:01:22.9]}
33. f3 {[%clk 0:00:24.1]} 33... Rb4 {[%clk 0:01:20.1]} 34. Re1 {[%clk
0:00:21.9]} 34... Rd4+ {[%clk 0:01:12]} 35. Kc3 {[%clk 0:00:21.9]} 35... h5
{[%clk 0:01:09.1]} 36. Be8 {[%clk 0:00:21.3]} 36... Nxe8 {[%clk 0:00:50]} 37.
Rxe8 {[%clk 0:00:22.2]} 37... Rb4 {[%clk 0:00:50.1]} 38. Rd8+ {[%clk 0:00:19.1]}
38... Ke6 {[%clk 0:00:49.5]} 39. Rc8 {[%clk 0:00:18.9]} 39... Rb5 {[%clk
0:00:48.2]} 40. a6 {[%clk 0:00:16.5]} 40... Rb6 {[%clk 0:00:42.1]} 41. Rxc5
{[%clk 0:00:15.8]} 41... Rxa6 {[%clk 0:00:42.6]} 42. Rc7 {[%clk 0:00:13.7]}
42... Ra2 {[%clk 0:00:38.8]} 43. Kd4 {[%clk 0:00:12.6]} 43... Rd2+ {[%clk
0:00:37.8]} 44. Ke3 {[%clk 0:00:12.7]} 44... Rxh2 {[%clk 0:00:37.3]} 45. Rxa7
{[%clk 0:00:12.2]} 45... Rb2 {[%clk 0:00:32.9]} 46. Ra6+ {[%clk 0:00:12.3]}
46... Ke5 {[%clk 0:00:30.5]} 47. Rb6 {[%clk 0:00:11.6]} 47... g5 {[%clk
0:00:27.3]} 48. Rb5 {[%clk 0:00:07]} 48... Rg2 {[%clk 0:00:22.2]} 49. f4+ {[%clk
0:00:06.6]} 49... Kd6 {[%clk 0:00:21.1]} 50. Kf3 {[%clk 0:00:03.5]} 50... Rb2
{[%clk 0:00:13.5]} 51. fxg5 {[%clk 0:00:03.9]} 51... Kc6 {[%clk 0:00:13.9]} 52.
Rb8 {[%clk 0:00:03.9]} 52... Kd6 {[%clk 0:00:08.9]} 53. Kf4 {[%clk 0:00:04.3]}
53... Ke6 {[%clk 0:00:08.3]} 54. Rb6+ {[%clk 0:00:04.2]} 54... Ke7 {[%clk
0:00:08.2]} 55. Ke5 {[%clk 0:00:04.8]} 55... Rg2 {[%clk 0:00:07.4]} 56. Kf4
{[%clk 0:00:05]} 56... Rf2+ {[%clk 0:00:07.3]} 57. Ke3 {[%clk 0:00:05.4]} 57...
Rg2 {[%clk 0:00:07.4]} 58. Kf3 {[%clk 0:00:05.8]} 58... Rg1 {[%clk 0:00:07.9]}
59. Rb5 {[%clk 0:00:06]} 59... Ke6 {[%clk 0:00:08.2]} 60. Rb6+ {[%clk
0:00:06.5]} 60... Ke5 {[%clk 0:00:08.7]} 61. Kf2 {[%clk 0:00:03.3]} 61... Rb1
{[%clk 0:00:08.3]} 62. Rf6 {[%clk 0:00:03.4]} 62... Rxb3 {[%clk 0:00:07.4]} 63.
Rxf7 {[%clk 0:00:04]} 63... Rb4 {[%clk 0:00:07.2]} 64. g6 {[%clk 0:00:03.6]}
64... Rg4 {[%clk 0:00:07.1]} 65. g7 {[%clk 0:00:04.5]} 65... Ke6 {[%clk
0:00:07.1]} 66. Ra7 {[%clk 0:00:04.5]} 66... Kf6 {[%clk 0:00:07.5]} 67. Rd7
{[%clk 0:00:04.4]} 67... d4 {[%clk 0:00:07.3]} 68. Kf3 {[%clk 0:00:04.4]} 68...
Ke6 {[%clk 0:00:07.6]} 69. Ra7 {[%clk 0:00:04.3]} 69... Ke5 {[%clk 0:00:08]} 70.
Rd7 {[%clk 0:00:04.2]} 70... Kf6 {[%clk 0:00:08]} 71. Rxd4 {[%clk 0:00:03.7]}
71... Rxg7 {[%clk 0:00:07.2]} 72. Rd5 {[%clk 0:00:03.7]} 72... Rh7 {[%clk
0:00:06.6]} 73. Kg2 {[%clk 0:00:03.8]} 73... Kg6 {[%clk 0:00:06.2]} 74. Kh3
{[%clk 0:00:04.4]} 74... Rf7 {[%clk 0:00:05.9]} 75. Kh4 {[%clk 0:00:04.6]} 75...
Rf6 {[%clk 0:00:05.5]} 76. Rg5+ {[%clk 0:00:04.8]} 76... Kf7 {[%clk 0:00:05.4]}
77. Rxh5 {[%clk 0:00:05.7]} 77... Rf1 {[%clk 0:00:05.5]} 78. Rb5 {[%clk
0:00:05.4]} 78... Kg6 {[%clk 0:00:04.7]} 79. Rb6+ {[%clk 0:00:05.2]} 79... Kg7
{[%clk 0:00:03.9]} 80. g4 {[%clk 0:00:05.8]} 80... Ra1 {[%clk 0:00:03.5]} 81.
Kh5 {[%clk 0:00:06.1]} 81... Ra5+ {[%clk 0:00:03.3]} 82. g5 {[%clk 0:00:06.6]}
82... Ra7 {[%clk 0:00:03.7]} 83. Rh6 {[%clk 0:00:06.7]} 83... Kg8 {[%clk
0:00:03.7]} 84. Rc6 {[%clk 0:00:05.7]} 84... Kg7 {[%clk 0:00:03.4]} 85. Rd6
{[%clk 0:00:05.5]} 85... Kh7 {[%clk 0:00:03.6]} 86. Rh6+ {[%clk 0:00:05.5]}
86... Kg7 {[%clk 0:00:04]} 87. Rg6+ {[%clk 0:00:06.4]} 87... Kh7 {[%clk
0:00:04.5]} 88. Rb6 {[%clk 0:00:07.2]} 88... Kg7 {[%clk 0:00:05]} 89. Kg4 {[%clk
0:00:07.7]} 89... Kh7 {[%clk 0:00:05.1]} 90. Rf6 {[%clk 0:00:08]} 90... Kg7
{[%clk 0:00:05.4]} 91. Rf4 {[%clk 0:00:08.9]} 91... Kh7 {[%clk 0:00:05.6]} 92.
Kh5 {[%clk 0:00:09.5]} 92... Kg7 {[%clk 0:00:05.9]} 93. Rf3 {[%clk 0:00:08.9]}
93... Kh7 {[%clk 0:00:06]} 94. Rf4 {[%clk 0:00:07.1]} 94... Kg7 {[%clk
0:00:06.2]} 95. Rf6 {[%clk 0:00:06.6]} 95... Kh7 {[%clk 0:00:06.3]} 96. Rd6
{[%clk 0:00:04.6]} 96... Kg7 {[%clk 0:00:06.4]} 97. Kg4 {[%clk 0:00:05]} 97...
Ra4+ {[%clk 0:00:05.8]} 98. Kf5 {[%clk 0:00:04.3]} 98... Ra7 {[%clk 0:00:06.7]}
99. Re6 {[%clk 0:00:02.9]} 99... Ra5+ {[%clk 0:00:06.7]} 100. Re5 {[%clk
0:00:03.5]} 100... Rxe5+ {[%clk 0:00:06.7]} 101. Kxe5 {[%clk 0:00:04.4]} 101...
Kg6 {[%clk 0:00:07.4]} 102. Kf4 {[%clk 0:00:05.3]} 102... Kg7 {[%clk 0:00:08]}
103. Kf5 {[%clk 0:00:06.2]} 103... Kf7 {[%clk 0:00:08.6]} 104. g6+ {[%clk
0:00:06.1]} 104... Kg7 {[%clk 0:00:09.2]} 105. Kg5 {[%clk 0:00:07]} 105... Kg8
{[%clk 0:00:09.7]} 106. Kg4 {[%clk 0:00:07.2]} 106... Kg7 {[%clk 0:00:09.9]}
107. Kf5 {[%clk 0:00:08.1]} 107... Kg8 {[%clk 0:00:10.4]} 108. Kg5 {[%clk
0:00:09]} 108... Kg7 {[%clk 0:00:10.9]} 109. Kf5 {[%clk 0:00:09.6]} 109... Kg8
{[%clk 0:00:11.3]} 110. Kf6 {[%clk 0:00:10.5]} 110... Kf8 {[%clk 0:00:11.3]}
111. g7+ {[%clk 0:00:11.4]} 111... Kg8 {[%clk 0:00:11.8]} 112. Kg6 {[%clk
0:00:11.7]} 1/2-1/2